bitfinex/quotes_BTCUSD_20250615
["timestamp","ask_amount","ask_price","bid_price","bid_amount"]
[1750029375347,8.949e-05,105470.0,105460.0,1.30531199]
[1750029375563,8.949e-05,105470.0,105460.0,1.31531199]
[1750029375992,8.949e-05,105470.0,105460.0,1.11883199]
[1750029376202,8.949e-05,105470.0,105460.0,1.31531199]
[1750029377076,8.949e-05,105470.0,105460.0,1.41146121]
[1750029378693,8.949e-05,105470.0,105460.0,1.4273332]
[1750029379628,8.949e-05,105470.0,105460.0,1.41146121]
[1750029382768,8.949e-05,105470.0,105460.0,1.31531199]
[1750029384322,8.949e-05,105470.0,105460.0,1.37182421]
[1750029387532,8.949e-05,105470.0,105460.0,1.37174421]
[1750029387979,8.949e-05,105470.0,105460.0,1.33396201]
[1750029388189,8.949e-05,105470.0,105460.0,1.32744979]
[1750029388402,8.949e-05,105470.0,105460.0,1.42359901]
[1750029388621,8.949e-05,105470.0,105460.0,1.88931221]
[1750029388837,8.949e-05,105470.0,105460.0,2.28551833]
[1750029389058,8.949e-05,105470.0,105460.0,1.88931221]
[1750029389517,8.949e-05,105470.0,105460.0,1.68891221]
[1750029389733,8.949e-05,105470.0,105460.0,1.87931221]
[1750029389940,8.949e-05,105470.0,105460.0,1.88531221]
[1750029390143,8.949e-05,105470.0,105460.0,1.89331221]
[1750029390355,0.00396,105500.0,105490.0,0.06583763]
[1750029390593,0.00443238,105500.0,105490.0,1.2990112]
[1750029392544,0.00443238,105500.0,105490.0,1.33668984]
[1750029392757,0.00443238,105500.0,105490.0,1.2990112]
[1750029392979,0.00443238,105500.0,105490.0,1.33668984]
[1750029393250,0.01984913,105500.0,105490.0,1.33668984]
[1750029393669,0.00443238,105500.0,105490.0,1.33668984]
[1750029394522,0.00443238,105500.0,105490.0,1.33665002]
[1750029394737,0.00443238,105500.0,105490.0,1.30775525]
[1750029394952,0.00443238,105500.0,105490.0,1.10191613]
[1750029395161,0.00443238,105500.0,105490.0,1.29827613]
[1750029395370,0.00443238,105500.0,105490.0,1.10191613]
[1750029395585,0.00443238,105500.0,105490.0,1.29827613]
[1750029395809,0.00443238,105500.0,105490.0,1.27001724]
[1750029396025,0.00443238,105500.0,105490.0,1.27001733]
[1750029396448,0.00443238,105500.0,105490.0,1.27949663]
[1750029396661,0.00443238,105500.0,105490.0,1.27001733]
[1750029396879,0.00443238,105500.0,105490.0,0.49719459]
[1750029397303,0.00443238,105500.0,105490.0,0.47829459]
[1750029397306,0.4475047,105500.0,105490.0,0.12453544]
[1750029397553,0.84960399,105500.0,105490.0,0.15572]
[1750029397778,0.0311,105490.0,105480.0,0.04064]
[1750029397994,0.0311,105490.0,105480.0,0.29260176]
[1750029398214,0.0311,105490.0,105480.0,0.13688176]
[1750029398472,0.0311,105480.0,105460.0,0.07597232]
[1750029398716,0.39453061,105480.0,105460.0,0.13453544]
[1750029398965,0.39453061,105480.0,105460.0,0.14688176]
[1750029398966,0.0199,105470.0,105460.0,0.14688176]
[1750029399194,0.0199,105470.0,105460.0,0.30260176]
[1750029399430,0.0199,105470.0,105460.0,0.01]
[1750029399664,0.42790612,105470.0,105460.0,0.16572]
[1750029399920,0.34889876,105480.0,105460.0,0.16572]
[1750029399921,0.23464268,105480.0,105460.0,0.16572]
[1750029401747,0.23464268,105480.0,105470.0,0.15572]
[1750029402696,0.23464268,105480.0,105460.0,0.01]
[1750029402931,0.40250612,105470.0,105460.0,0.01]
[1750029404775,0.40250612,105470.0,105460.0,0.012]
[1750029405470,0.78275673,105470.0,105460.0,0.013]
[1750029405903,0.74250612,105470.0,105460.0,0.013]
[1750029406358,0.3463,105470.0,105460.0,0.013]
[1750029406578,0.34,105470.0,105460.0,0.013]
[1750029406997,0.34,105470.0,105460.0,0.012]
[1750029407671,0.34,105470.0,105460.0,0.01]
[1750029407947,0.36817834,105470.0,105460.0,0.01]
[1750029408663,0.76438446,105470.0,105460.0,0.01]
[1750029411693,0.36817834,105470.0,105460.0,0.01]
[1750029412326,0.34,105470.0,105460.0,0.01]
[1750029412588,0.028509,105490.0,105460.0,0.75122767]
[1750029412843,0.34,105480.0,105470.0,0.28976176]
[1750029413060,0.34,105480.0,105470.0,0.38116767]
[1750029414183,0.341,105480.0,105470.0,0.28976176]
[1750029414615,0.342,105480.0,105470.0,0.28976176]
[1750029418138,0.342,105480.0,105470.0,0.13404176]
[1750029419336,0.342,105480.0,105470.0,0.28976176]
[1750029419989,0.002,105480.0,105470.0,0.38591098]
[1750029420201,0.342,105480.0,105470.0,0.38591098]
[1750029420693,0.342,105480.0,105470.0,0.28976176]
[1750029425025,0.002,105480.0,105470.0,0.69544924]
[1750029425259,0.002,105480.0,105470.0,0.68596788]
[1750029425474,0.002,105480.0,105470.0,0.4888705]
[1750029425698,0.002,105480.0,105470.0,0.87559526]
[1750029425926,0.002,105480.0,105470.0,1.32728116]
[1750029426371,0.002,105480.0,105470.0,1.31780043]
[1750029426587,0.002,105480.0,105470.0,1.21217021]
[1750029426801,0.002,105480.0,105470.0,0.61685544]
[1750029427014,0.002,105480.0,105470.0,0.6263368]
[1750029427244,0.002,105480.0,105470.0,0.46113544]
[1750029427468,0.002,105480.0,105470.0,0.65741544]
[1750029431495,0.002,105480.0,105470.0,0.65747723]
[1750029433449,0.002,105480.0,105470.0,1.3584224]
[1750029433899,0.002,105480.0,105470.0,1.1621424]
[1750029434152,0.002,105480.0,105470.0,1.33945995]
[1750029434414,0.002,105480.0,105470.0,0.46119723]
[1750029434656,0.002,105480.0,105470.0,0.65747723]
[1750029438014,0.39820612,105480.0,105470.0,0.65743723]
[1750029438230,0.39820612,105480.0,105470.0,0.56928176]
[1750029438463,0.39820612,105480.0,105470.0,0.27048176]
[1750029438895,0.39820612,105480.0,105470.0,0.31843723]
[1750029439149,0.002,105480.0,105470.0,0.29008176]
[1750029439406,0.002,105480.0,105470.0,0.31843723]
[1750029440566,0.002,105480.0,105470.0,0.29008176]
[1750029441051,0.002,105480.0,105470.0,0.13444176]
[1750029441279,0.73820612,105480.0,105470.0,0.15564]
[1750029441524,0.83435534,105480.0,105470.0,0.15564]
[1750029441743,0.83435534,105480.0,105470.0,0.17434]
[1750029442238,0.83435534,105480.0,105470.0,0.15564]
[1750029442919,0.73820612,105480.0,105470.0,0.15564]
[1750029444884,0.73820612,105480.0,105470.0,0.17434]
[1750029446294,0.58790629,105480.0,105470.0,0.17434]
[1750029447901,0.34,105480.0,105470.0,0.17434]
[1750029448134,0.73620612,105480.0,105460.0,0.41645547]
[1750029448367,0.39620612,105470.0,105460.0,0.54374]
[1750029448601,0.73620612,105480.0,105460.0,0.54374]
[1750029448837,0.73620612,105480.0,105460.0,0.63958176]
[1750029448838,5.05,105470.0,105460.0,0.63958176]
[1750029449060,5.05,105470.0,105460.0,0.73573098]
[1750029449552,5.05,105470.0,105460.0,0.59898176]
[1750029450017,0.34,105480.0,105460.0,0.99518788]
[1750029450261,0.34,105480.0,105470.0,0.0383]
[1750029450486,0.341,105480.0,105470.0,0.0383]
[1750029451219,0.34,105480.0,105470.0,0.0383]
[1750029451447,0.341,105480.0,105470.0,0.0383]
[1750029452574,0.342,105480.0,105470.0,0.0383]
[1750029453912,0.73820612,105480.0,105470.0,0.0383]
[1750029454132,0.75449739,105480.0,105470.0,0.0197]
[1750029455083,0.73820612,105480.0,105470.0,0.0389]
[1750029455758,0.73820612,105480.0,105460.0,0.29968176]
[1750029456686,0.73620612,105480.0,105460.0,0.29968176]
[1750029457172,0.73720612,105480.0,105460.0,0.29968176]
[1750029457408,0.73820612,105480.0,105460.0,0.29968176]
[1750029457629,0.81253673,105480.0,105460.0,0.29968176]
[1750029458074,0.81253673,105480.0,105460.0,0.28098176]
[1750029458294,0.73820612,105480.0,105470.0,0.0193]
[1750029459229,0.73820612,105480.0,105470.0,0.0393]
[1750029459438,0.73620612,105480.0,105470.0,0.0393]
[1750029459644,0.73720612,105480.0,105470.0,0.0393]
[1750029459868,0.73820612,105480.0,105470.0,0.0393]
[1750029461593,0.73820612,105480.0,105470.0,0.0193]
[1750029462431,0.81263673,105480.0,105460.0,0.44324176]
[1750029462675,0.39620612,105470.0,105460.0,0.50264]
[1750029463114,5.05,105470.0,105460.0,0.50264]
[1750029463951,5.05,105470.0,105460.0,0.50364]
[1750029464576,5.05,105470.0,105460.0,0.50464]
[1750029465212,5.05,105470.0,105460.0,0.20584]
[1750029470752,5.05,105470.0,105460.0,0.19584]
[1750029471857,5.05,105470.0,105460.0,0.22419547]
[1750029472498,5.05,105470.0,105460.0,0.19584]
[1750029472708,5.05,105470.0,105460.0,0.22419547]
[1750029476943,5.05,105470.0,105460.0,0.30518184]
[1750029477157,5.05,105470.0,105460.0,0.22419547]
[1750029478631,0.34,105480.0,105470.0,0.0391]
[1750029480106,0.342,105480.0,105470.0,0.0391]
[1750029480993,0.342,105480.0,105470.0,0.13534176]
[1750029481210,0.342,105480.0,105470.0,0.6276971]
[1750029481442,0.002,105480.0,105470.0,0.66553384]
[1750029481682,0.002,105480.0,105470.0,0.88344621]
[1750029481960,0.002,105480.0,105470.0,1.19172694]
[1750029482388,0.002,105480.0,105470.0,1.18224621]
[1750029482641,0.002,105480.0,105470.0,1.19172694]
[1750029482866,0.01964067,105500.0,105470.0,1.1621075]
[1750029483116,0.01964067,105500.0,105490.0,0.0396]
[1750029483578,0.35964067,105500.0,105490.0,0.0396]
[1750029483802,0.01964067,105500.0,105490.0,0.18676162]
[1750029484044,0.01964067,105500.0,105490.0,0.58296774]
[1750029484271,0.02064067,105500.0,105490.0,0.58296774]
[1750029484480,0.02164067,105500.0,105490.0,0.13584176]
[1750029485345,0.02064067,105500.0,105490.0,0.13584176]
[1750029485559,0.02164067,105500.0,105490.0,0.13584176]
[1750029490615,0.02164067,105500.0,105490.0,0.33200176]
[1750029492684,0.02164067,105500.0,105490.0,0.42567955]
[1750029492916,0.00643238,105500.0,105490.0,1.32923579]
[1750029493137,0.00643238,105500.0,105490.0,1.37649075]
[1750029493327,0.00643238,105500.0,105490.0,1.37649084]
[1750029493621,0.00643238,105500.0,105490.0,1.35767297]
[1750029494066,0.00543238,105500.0,105490.0,1.35767297]
[1750029494287,0.00543238,105500.0,105490.0,1.15203412]
[1750029494512,0.00543238,105500.0,105490.0,1.38586582]
[1750029494697,0.00543238,105500.0,105490.0,1.38586591]
[1750029494947,0.00543238,105500.0,105490.0,1.37738688]
[1750029495164,0.00443238,105500.0,105490.0,1.38686591]
[1750029495389,0.00443238,105500.0,105490.0,1.38686546]
[1750029495610,0.00443238,105500.0,105490.0,1.37738652]
[1750029495835,0.00443238,105500.0,105490.0,1.36890749]
[1750029496307,0.00443238,105500.0,105490.0,1.37838643]
[1750029496531,0.00443238,105500.0,105490.0,1.37838652]
[1750029496962,0.00443238,105500.0,105490.0,1.36890749]
[1750029497421,0.00443238,105500.0,105490.0,1.37838643]
[1750029497640,0.00443238,105500.0,105490.0,1.37838652]
[1750029498538,0.00443238,105500.0,105490.0,1.38786546]
[1750029500853,0.00443238,105500.0,105490.0,1.40240631]
[1750029502050,0.00443238,105500.0,105490.0,1.44010333]
[1750029502505,0.00443238,105500.0,105490.0,0.75413942]
[1750029502724,0.00443238,105500.0,105490.0,1.34642554]
[1750029503395,0.00443238,105500.0,105490.0,1.27522997]
[1750029503621,0.00443238,105500.0,105490.0,1.28470891]
[1750029504081,0.00443238,105500.0,105490.0,1.26575094]
[1750029504296,0.00443238,105500.0,105490.0,1.27523015]
[1750029504509,0.00443238,105500.0,105490.0,0.87902403]
[1750029504729,0.00443238,105500.0,105490.0,1.27523015]
[1750029504969,0.00443238,105500.0,105490.0,1.25627155]
[1750029505193,0.00443238,105500.0,105490.0,1.26575094]
[1750029505406,0.00443238,105500.0,105490.0,1.31292726]
[1750029506061,0.00443238,105500.0,105490.0,1.30344796]
[1750029506345,0.00443238,105500.0,105490.0,0.90724184]
[1750029506561,0.00443238,105500.0,105490.0,0.91672114]
[1750029506778,0.00443238,105500.0,105490.0,0.92620035]
[1750029507006,0.00443238,105500.0,105490.0,0.89776245]
[1750029507222,0.00443238,105500.0,105490.0,0.90724175]
[1750029507427,0.00443238,105500.0,105490.0,0.90724184]
[1750029507862,0.00443238,105500.0,105490.0,0.89776245]
[1750029508092,0.00443238,105500.0,105490.0,0.90724184]
[1750029508315,0.00443238,105500.0,105490.0,0.88844829]
[1750029508747,0.01443238,105500.0,105490.0,0.87896908]
[1750029508982,0.01443238,105500.0,105490.0,0.86948969]
[1750029509205,0.01443238,105500.0,105490.0,0.67037878]
[1750029509638,0.01443238,105500.0,105490.0,0.8789289]
[1750029509861,0.01443238,105500.0,105490.0,0.97507812]
[1750029510078,0.01443238,105500.0,105490.0,0.98455733]
[1750029510305,0.01443238,105500.0,105490.0,0.97507812]
[1750029510738,0.01443238,105500.0,105490.0,0.98455715]
[1750029510951,0.01443238,105500.0,105490.0,0.98455724]
[1750029511169,0.01443238,105500.0,105490.0,1.03162365]
[1750029511658,0.01443238,105500.0,105490.0,1.04110286]
[1750029512109,0.01443238,105500.0,105490.0,1.03162365]
[1750029512340,0.01443238,105500.0,105490.0,1.42782977]
[1750029512524,0.01443238,105500.0,105490.0,1.43730898]
[1750029513208,0.01443238,105500.0,105490.0,1.4467881]
[1750029513640,0.01443238,105500.0,105490.0,1.45626704]
[1750029513854,0.01443238,105500.0,105490.0,1.41857002]
[1750029517360,0.01443238,105500.0,105490.0,1.11950484]
[1750029517574,0.01443238,105500.0,105490.0,1.30346238]
[1750029517787,0.01443238,105500.0,105490.0,1.31294132]
[1750029522587,0.01443238,105500.0,105490.0,1.09794335]
[1750029522817,0.01443238,105500.0,105490.0,0.69225811]
[1750029523032,0.01443238,105500.0,105490.0,0.72329872]
[1750029523244,0.01443238,105500.0,105490.0,0.8977775]
[1750029523463,0.01443238,105500.0,105490.0,0.89777759]
[1750029523680,0.01443238,105500.0,105490.0,0.69225829]
[1750029523891,0.01443238,105500.0,105490.0,0.90725698]
[1750029524760,0.01443238,105500.0,105490.0,1.01288523]
[1750029525186,0.01443238,105500.0,105490.0,1.40909135]
[1750029525864,0.01443238,105500.0,105490.0,1.40909144]
[1750029526076,0.39620612,105520.0,105500.0,0.0398]
[1750029526323,0.40524193,105520.0,105510.0,0.15548]
[1750029526547,0.39634775,105520.0,105510.0,0.15548]
[1750029526969,0.40524193,105520.0,105510.0,0.15548]
[1750029527455,0.39834775,105520.0,105510.0,0.15548]
[1750029527667,0.41373984,105520.0,105510.0,0.15548]
[1750029528782,0.41173984,105520.0,105510.0,0.15548]
[1750029528993,0.41373984,105520.0,105510.0,0.15548]
[1750029529914,0.01753372,105520.0,105510.0,0.24589986]
[1750029530119,0.01753372,105520.0,105510.0,0.19498]
[1750029531857,0.01753372,105520.0,105510.0,0.31960332]
[1750029533352,0.01753372,105520.0,105510.0,0.61840332]
[1750029534213,0.01753372,105520.0,105510.0,0.59002176]
[1750029534450,0.01753372,105520.0,105510.0,0.61840332]
[1750029538331,0.41373984,105520.0,105510.0,0.61840332]
[1750029538765,0.01753372,105520.0,105510.0,0.61840332]
[1750029540314,0.01753372,105520.0,105510.0,0.57890332]
[1750029540949,0.01753372,105520.0,105510.0,0.68831993]
[1750029543187,0.01753372,105520.0,105510.0,0.61860332]
[1750029552475,0.01753372,105520.0,105510.0,0.46312332]
[1750029552702,0.01753372,105520.0,105510.0,0.61856332]
[1750029559568,0.01753372,105520.0,105510.0,1.05261219]
[1750029559816,0.01753372,105520.0,105510.0,1.02423063]
[1750029560030,0.01753372,105520.0,105510.0,0.84597777]
[1750029560242,0.01553372,105520.0,105510.0,0.85545545]
[1750029560453,0.01353372,105520.0,105510.0,0.85545545]
[1750029560878,0.01353372,105520.0,105510.0,0.86893313]
[1750029561103,0.01353372,105520.0,105510.0,0.86893322]
[1750029561534,0.01353372,105520.0,105510.0,0.66042228]
[1750029562630,0.01353372,105520.0,105510.0,0.66990005]
[1750029563081,0.01353372,105520.0,105510.0,0.86893322]
[1750029563298,0.01353372,105520.0,105510.0,1.38972061]
[1750029563511,0.00014163,105520.0,105510.0,1.36132293]
[1750029563965,0.00014163,105520.0,105510.0,1.3518457]
[1750029564196,0.00014163,105520.0,105510.0,1.36132284]
[1750029564416,0.00014163,105520.0,105510.0,1.41786837]
[1750029564628,0.00014163,105520.0,105510.0,1.38002562]
[1750029565891,0.00014163,105520.0,105510.0,1.39456647]
[1750029566523,0.00014163,105520.0,105510.0,1.33802094]
[1750029567167,0.00014163,105520.0,105510.0,2.1976211]
[1750029567381,0.01,105530.0,105520.0,0.2325079]
[1750029567632,0.01,105530.0,105520.0,1.51058176]
[1750029568054,0.01,105530.0,105520.0,1.53906176]
[1750029568260,0.01,105530.0,105520.0,1.59564207]
[1750029569336,0.01,105530.0,105520.0,1.59864207]
[1750029569546,0.01,105530.0,105520.0,1.60464207]
[1750029572802,0.01,105530.0,105520.0,1.62909582]
[1750029573898,0.01,105530.0,105520.0,1.78449582]
[1750029574385,0.01,105530.0,105520.0,2.17449582]
[1750029575675,0.01,105530.0,105520.0,2.11791551]
[1750029576101,0.01,105530.0,105520.0,2.17437234]
[1750029577409,0.01,105530.0,105520.0,2.20286964]
[1750029577624,0.01,105550.0,105540.0,0.21792577]
[1750029577869,0.01,105550.0,105540.0,0.97409459]
[1750029578093,0.01,105550.0,105540.0,1.04561257]
[1750029578945,0.01,105550.0,105540.0,1.04661257]
[1750029579431,0.01,105550.0,105540.0,1.04861257]
[1750029581026,0.01,105550.0,105540.0,0.85281257]
[1750029581246,0.01,105550.0,105540.0,1.06315342]
[1750029582149,0.01,105550.0,105540.0,0.86535342]
[1750029582378,0.01,105550.0,105540.0,1.06015342]
[1750029582611,0.03277772,105570.0,105560.0,0.20400655]
[1750029582886,0.00903546,105570.0,105560.0,1.65746713]
[1750029583110,0.00014163,105570.0,105560.0,2.06332281]
[1750029583338,0.00014163,105570.0,105560.0,2.08533498]
[1750029583558,0.00014163,105570.0,105560.0,2.07577498]
[1750029583776,0.00014163,105570.0,105560.0,1.67956886]
[1750029584008,0.00014163,105570.0,105560.0,1.70414183]
[1750029584219,0.00014163,105570.0,105560.0,1.52034183]
[1750029584454,0.00014163,105570.0,105560.0,1.69152886]
[1750029584677,0.00014163,105570.0,105560.0,1.49576886]
[1750029584896,0.00014163,105570.0,105560.0,1.36282628]
[1750029585114,0.00014163,105570.0,105560.0,0.35068065]
[1750029585557,0.00014163,105570.0,105560.0,0.54991375]
[1750029585803,0.00014163,105570.0,105560.0,0.55938676]
[1750029586000,0.00014163,105570.0,105560.0,0.55885968]
[1750029586207,0.00014163,105570.0,105560.0,0.56385968]
[1750029586411,0.00014163,105570.0,105560.0,0.36309968]
[1750029586630,0.00014163,105570.0,105560.0,0.55885968]
[1750029586832,0.00014163,105570.0,105560.0,0.56485968]
[1750029587261,0.00014163,105570.0,105560.0,0.56085968]
[1750029587465,0.00014163,105570.0,105560.0,0.57033251]
[1750029587677,0.00014163,105570.0,105560.0,0.57233251]
[1750029588096,0.00014163,105570.0,105560.0,0.57233206]
[1750029588510,0.00014163,105570.0,105560.0,1.04408883]
[1750029589597,0.00014163,105570.0,105560.0,1.33288883]
[1750029591331,0.00014163,105570.0,105560.0,1.36105063]
[1750029592263,0.00014163,105570.0,105560.0,1.39864601]
[1750029592740,0.00014163,105570.0,105560.0,1.37048421]
[1750029592984,0.00014163,105570.0,105560.0,1.39895721]
[1750029593215,0.00014163,105570.0,105560.0,1.45541404]
[1750029594836,0.00014163,105570.0,105560.0,1.42694104]
[1750029595308,0.00903325,105570.0,105560.0,1.23118104]
[1750029595570,0.00014163,105570.0,105560.0,1.42694104]
[1750029595801,0.00903325,105570.0,105560.0,1.42694104]
[1750029596024,0.00014163,105570.0,105560.0,1.42694104]
[1750029596477,0.00903322,105570.0,105560.0,1.44148189]
[1750029596722,0.00014163,105570.0,105560.0,1.44148189]
[1750029596954,0.00903325,105570.0,105560.0,1.46995289]
[1750029597188,0.00014163,105570.0,105560.0,1.46995289]
[1750029597416,0.00903329,105570.0,105560.0,1.43235751]
[1750029597626,0.00903324,105570.0,105560.0,1.43235751]
[1750029597840,0.00014163,105570.0,105560.0,1.43235751]
[1750029598300,0.00901748,105570.0,105560.0,1.43235751]
[1750029598511,0.00901749,105570.0,105560.0,1.43235751]
[1750029599377,0.00901746,105570.0,105560.0,1.82856363]
[1750029599590,0.00014163,105570.0,105560.0,1.82856363]
[1750029600259,0.00901726,105570.0,105560.0,1.82856363]
[1750029600498,0.00901726,105570.0,105560.0,1.8233068]
[1750029600499,0.00901708,105570.0,105560.0,1.8233068]
[1750029600694,0.00901708,105570.0,105560.0,1.89870084]
[1750029600913,0.00901676,105570.0,105560.0,1.89870084]
[1750029601144,0.00014163,105570.0,105560.0,1.94870084]
[1750029601353,0.00014163,105570.0,105560.0,2.23750084]
[1750029601810,0.00014163,105570.0,105560.0,2.04159789]
[1750029602030,0.00014163,105570.0,105560.0,2.23731789]
[1750029602465,0.00014163,105570.0,105560.0,2.23531789]
[1750029602681,0.00014163,105570.0,105560.0,2.23831789]
[1750029602898,0.00014163,105570.0,105560.0,2.24531789]
[1750029603128,0.005,105580.0,105570.0,0.25596381]
[1750029603343,0.05,105600.0,105590.0,0.27046341]
[1750029603555,0.0589634,105600.0,105590.0,1.285]
[1750029603993,0.0589634,105600.0,105590.0,1.313462]
[1750029604238,0.05896329,105600.0,105590.0,1.313462]
[1750029604453,0.05896305,105600.0,105590.0,1.44542616]
[1750029604668,0.05896306,105600.0,105590.0,1.3890131]
[1750029604896,0.05896301,105600.0,105590.0,0.99280698]
[1750029605138,0.0589631,105600.0,105590.0,1.3890131]
[1750029605355,0.05008945,105600.0,105590.0,1.3890131]
[1750029605579,0.05896309,105600.0,105590.0,1.3890131]
[1750029605831,0.05896308,105600.0,105590.0,1.3890131]
[1750029606042,0.05896308,105600.0,105590.0,1.3910131]
[1750029606261,0.05008945,105600.0,105590.0,1.3910131]
[1750029606481,0.05896313,105600.0,105590.0,1.3910131]
[1750029606703,0.05008945,105600.0,105590.0,1.3910131]
[1750029607141,0.05896301,105600.0,105590.0,1.3910131]
[1750029607361,0.05008945,105600.0,105590.0,1.3910131]
[1750029607781,0.05896293,105600.0,105590.0,1.3910131]
[1750029608209,0.05896292,105600.0,105590.0,1.3910131]
[1750029608449,0.05008945,105600.0,105590.0,1.44742616]
[1750029608657,0.05896277,105600.0,105590.0,1.44742616]
[1750029608881,0.05008945,105600.0,105590.0,1.44742616]
[1750029609522,0.05008945,105600.0,105590.0,1.84363228]
[1750029609741,0.05008945,105600.0,105590.0,1.80602357]
[1750029609972,0.05008945,105600.0,105590.0,1.40981745]
[1750029610442,0.05008945,105600.0,105590.0,2.14502357]
[1750029610663,0.05008945,105600.0,105590.0,2.08861051]
[1750029611346,0.05008945,105600.0,105590.0,2.21284121]
[1750029611618,0.05008945,105600.0,105590.0,2.21784121]
[1750029611816,0.05008945,105600.0,105590.0,2.14661051]
[1750029612267,0.30071955,105650.0,105620.0,0.23616069]
[1750029612483,0.31006398,105650.0,105630.0,0.25148176]
[1750029612696,0.28344725,105650.0,105640.0,0.15524]
[1750029612925,0.74482903,105650.0,105640.0,0.15524]
[1750029613162,0.74482903,105650.0,105640.0,0.18038818]
[1750029613426,0.74487592,105650.0,105640.0,0.18038818]
[1750029613644,0.74265395,105650.0,105640.0,0.18038818]
[1750029613861,0.75154184,105650.0,105630.0,0.09624176]
[1750029614079,0.33756041,105650.0,105640.0,0.14907762]
[1750029614297,0.75154261,105650.0,105640.0,0.14907762]
[1750029614510,0.75154263,105650.0,105640.0,0.14907762]
[1750029614772,0.75154272,105650.0,105640.0,0.14907762]
[1750029615024,0.73376648,105650.0,105640.0,0.14907762]
[1750029615304,0.73376645,105650.0,105640.0,0.15524]
[1750029615532,0.75154278,105650.0,105640.0,0.15524]
[1750029615757,0.72487834,105650.0,105640.0,0.15524]
[1750029616000,0.73598857,105650.0,105640.0,0.15524]
[1750029616217,0.75154291,105650.0,105640.0,0.15524]
[1750029616435,0.7515429,105650.0,105640.0,0.15524]
[1750029616665,0.74487668,105650.0,105640.0,0.18442818]
[1750029616891,0.73376645,105650.0,105640.0,0.18442818]
[1750029617109,0.74265441,105650.0,105640.0,0.15524]
[1750029617343,0.34644841,105650.0,105640.0,0.15524]
[1750029617572,0.75154202,105650.0,105640.0,0.15524]
[1750029617797,0.81914841,105650.0,105640.0,0.15524]
[1750029618010,0.83692418,105650.0,105640.0,0.15524]
[1750029618250,0.83025826,105650.0,105640.0,0.15524]
[1750029618462,0.82803638,105650.0,105640.0,0.15524]
[1750029618734,0.81026051,105650.0,105640.0,0.15524]
[1750029618947,0.83692426,105650.0,105640.0,0.15524]
[1750029619152,0.83692442,105650.0,105640.0,0.15524]
[1750029619366,0.83692459,105650.0,105640.0,0.15524]
[1750029619575,0.82137082,105650.0,105640.0,0.15524]
[1750029619784,0.83692507,105650.0,105640.0,0.15524]
[1750029620024,0.81914877,105650.0,105640.0,0.15524]
[1750029620228,0.83692506,105650.0,105640.0,0.15524]
[1750029620460,0.83692512,105650.0,105640.0,0.15524]
[1750029620668,0.83692508,105650.0,105640.0,0.15524]
[1750029620885,0.83692499,105650.0,105640.0,0.15524]
[1750029621097,0.83692502,105650.0,105630.0,0.09624176]
[1750029621337,0.39620612,105640.0,105630.0,0.09624176]
[1750029621546,0.39620612,105640.0,105630.0,0.25148176]
[1750029621754,0.4228711,105640.0,105630.0,0.25148176]
[1750029621960,0.42287108,105640.0,105630.0,0.25148176]
[1750029622172,0.42287116,105640.0,105630.0,0.25148176]
[1750029622405,0.86810444,105640.0,105610.0,0.0187]
[1750029622694,0.39620612,105620.0,105610.0,0.09624176]
[1750029622895,0.42287562,105620.0,105590.0,0.0784]
[1750029623109,0.06278929,105620.0,105600.0,0.09624176]
[1750029623329,0.39620612,105610.0,105590.0,0.09624176]
[1750029623548,5.05889081,105610.0,105600.0,0.15524]
[1750029623761,0.04500847,105620.0,105590.0,0.25148176]
[1750029623994,5.05,105610.0,105590.0,0.25148176]
[1750029624217,5.0588909,105610.0,105590.0,0.09624176]
[1750029624428,5.05,105620.0,105590.0,0.25148176]
[1750029624642,0.39667798,105610.0,105590.0,0.25148176]
[1750029624858,0.39620612,105600.0,105590.0,0.25148176]
[1750029625077,0.39667798,105610.0,105590.0,0.25148176]
[1750029625299,0.40556888,105610.0,105590.0,0.25148176]
[1750029625513,0.40556888,105610.0,105590.0,0.31757745]
[1750029625736,0.40556888,105610.0,105590.0,0.33747745]
[1750029625953,0.40556888,105610.0,105590.0,0.34347745]
[1750029626414,0.39667798,105610.0,105590.0,0.34347745]
[1750029626698,0.40556888,105610.0,105590.0,0.34347745]
[1750029627403,0.40556888,105610.0,105590.0,0.33747745]
[1750029627627,0.39667798,105610.0,105590.0,0.33947745]
[1750029628330,0.40556888,105610.0,105590.0,0.33947745]
[1750029628761,0.39667798,105610.0,105590.0,0.33947745]
[1750029629012,0.40556889,105610.0,105590.0,0.33947745]
[1750029629693,0.40556889,105610.0,105590.0,0.27338176]
[1750029629901,0.39620612,105600.0,105590.0,0.25348176]
[1750029630961,0.39620612,105600.0,105590.0,0.25148176]
[1750029631179,0.39620612,105600.0,105590.0,0.25648176]
[1750029632216,0.39620612,105600.0,105590.0,0.10124176]
[1750029632431,0.39620612,105600.0,105590.0,0.25648176]
[1750029632894,0.00047186,105610.0,105590.0,0.34953154]
[1750029633124,0.39667798,105610.0,105590.0,0.36893154]
[1750029633336,0.40556899,105610.0,105590.0,0.29498176]
[1750029633553,0.40556899,105610.0,105590.0,0.13974176]
[1750029633769,0.40556899,105610.0,105600.0,0.15524]
[1750029633994,0.40556904,105610.0,105600.0,0.15524]
[1750029634214,0.39667798,105610.0,105600.0,0.15524]
[1750029634587,0.40556902,105610.0,105600.0,0.15524]
[1750029635121,0.40556902,105610.0,105590.0,0.13474176]
[1750029635353,0.39667798,105610.0,105600.0,0.15724]
[1750029635577,0.405569,105610.0,105600.0,0.15724]
[1750029636455,0.40556898,105610.0,105600.0,0.15724]
[1750029636684,0.40556898,105610.0,105600.0,0.19584]
[1750029636925,0.00936287,105610.0,105600.0,0.32532994]
[1750029637192,0.00047186,105610.0,105600.0,0.32532994]
[1750029638127,0.00047186,105610.0,105600.0,0.29008176]
[1750029638584,0.00047186,105610.0,105600.0,0.29208176]
[1750029639384,0.00047186,105610.0,105600.0,0.73191132]
[1750029639603,0.00047186,105610.0,105600.0,0.93702065]
[1750029639849,0.00047186,105610.0,105600.0,0.97471636]
[1750029640052,0.00047186,105610.0,105600.0,1.07086558]
[1750029640476,0.00047186,105610.0,105600.0,1.36966558]
[1750029640694,0.00047186,105610.0,105600.0,1.40722629]
[1750029641360,0.00047186,105610.0,105600.0,1.37899964]
[1750029643685,0.00047186,105610.0,105600.0,0.87717551]
[1750029643906,0.00047186,105610.0,105600.0,0.89589098]
[1750029644111,0.00047186,105610.0,105600.0,0.91482973]
[1750029644519,0.00047186,105610.0,105600.0,0.90536049]
[1750029644938,0.00047186,105610.0,105600.0,0.90536058]
[1750029645133,0.00047186,105610.0,105600.0,0.50138736]
[1750029645334,0.39667798,105610.0,105600.0,0.46382665]
[1750029645542,0.39667798,105610.0,105600.0,0.33248176]
[1750029646369,0.00047186,105610.0,105600.0,0.33248176]